[Event "ChessHouse GM December 2020"]
[Site "Aarhus"]
[Date "2020.11.30"]
[Round "3.2"]
[White "Bjerre, Jonas Buhl"]
[Black "Grigorian, Spartak"]
[Result "1/2-1/2"]
[ECO "E10"]
[WhiteElo "2551"]
[BlackElo "2433"]
[Annotator "RC"]
[PlyCount "66"]
[EventDate "2020.11.29"]
[EventType "tourn"]
[EventCountry "DEN"]
[SourceTitle "playchess.com"]
[Source "ChessBase"]
[SourceQuality "1"]
[TimeControl "40/5400+30:1800+30"]

1. d4 {[%emt 0:00:00]} Nf6 {[%emt 0:00:00]} 2. c4 {[%emt 0:00:00]} e6 {[%emt 0:00:00]} 3. Nf3 {[%emt 0:00:00]} d5 {[%emt 0:00:00]} 4. g3 {[%emt 0:00:04]} Bb4+ {[%emt 0:00:31]} 5. Bd2 {[%emt 0:00:30]} Be7 {[%emt 0:00:09]} 6. Bg2 {[%emt 0:00:35]} c6 {[%emt 0:01:10]} 7. O-O {[%emt 0:04:48]} O-O {[%emt 0:00:12]} 8. a4 {[%emt 0:00:53]} a5 {[%emt 0:04:00]} 9. Qc2 {[%emt 0:01:06]} Nbd7 {[%emt 0:04:13]} 10. Na3 {[%emt 0:01:18]} Ne4 {[%emt 0:04:08]} 11. Be3 {[%emt 0:02:40]} f5 {[%emt 0:07:45]} 12. Ne1 {[%emt 0:02:22]} Bd6 {[%emt 0:14:03]} 13. Nd3 {[%emt 0:02:37]} Qe7 {[%emt 0:00:33]} 14. Qc1 {[%emt 0:04:22]} Bb8 {[%emt 0:18:02]} 15. Nb1 {[%emt 0:17:20]} b6 {[%emt 0:05:22]} 16. Nd2 {[%emt 0:08:41]} Ba6 {[%emt 0:02:11]} 17. b3 {[%emt 0:01:50]} Bd6 {[%emt 0:05:16]} 18. Bf4 {[%emt 0:04:57]} Rac8 {[%emt 0:00:46]} 19. Rd1 {[%emt 0:03:33]} c5 {[%emt 0:08:27]} 20. Bxd6 {[%emt 0:04:06]} Nxd6 {[%emt 0:04:00]} 21. dxc5 {[%emt 0:07:05]} Nxc5 {[%emt 0:00:07]} 22. Ne5 {[%emt 0:02:01]} Qf6 {[%emt 0:07:34]} 23. Qb2 {[%emt 0:07:16]} Nf7 {[%emt 0:01:30]} 24. f4 {[%emt 0:04:11]} Nxe5 {[%emt 0:01:19]} 25. fxe5 {[%emt 0:03:42]} Qh6 {[%emt 0:00:07]} 26. Kh1 {[%emt 0:01:53]} Qe3 {[%emt 0:06:52]} 27. Bf3 {[%emt 0:04:49]} Rfd8 {[%emt 0:02:13]} 28. Rab1 {[%emt 0:04:00]} d4 {[%emt 0:01:49]} 29. Nf1 {[%emt 0:00:45]} Qc3 {[%emt 0:01:29]} 30. Qxc3 {[%emt 0:01:06]} dxc3 {[%emt 0:00:05]} 31. Rdc1 {[%emt 0:00:07]} Nd7 {[%emt 0:00:27]} 32. Rxc3 {[%emt 0:00:55]} Nxe5 {[%emt 0:00:06]} 33. Re3 {[%emt 0:02:09]} Rc5 {[%emt 0:00:22]} 1/2-1/2

[Event "ChessHouse GM December 2020"]
[Site "Aarhus"]
[Date "2020.11.30"]
[Round "3.4"]
[White "Olsen, Filip Boe"]
[Black "Nilssen, Ellen Fredericia"]
[Result "1-0"]
[ECO "A30"]
[WhiteElo "2354"]
[BlackElo "2174"]
[Annotator "ChessBase"]
[PlyCount "75"]
[EventDate "2020.11.29"]
[EventType "tourn"]
[EventCountry "DEN"]
[SourceTitle "playchess.com"]
[Source "ChessBase"]
[SourceQuality "1"]
[TimeControl "40/5400+30:1800+30"]

1. c4 c5 2. Nf3 Nc6 3. Nc3 g6 4. e3 Nf6 5. d4 cxd4 6. exd4 d5 7. cxd5 Nxd5 8. Qb3 Nxc3 9. Bc4 Nd5 10. Bxd5 e6 11. Bxc6+ bxc6 12. O-O Bg7 13. Bg5 Qd6 14. Qe3 O-O 15. Rfc1 Re8 16. Rc5 Bb7 17. h4 f6 18. Bh6 Bxh6 19. Qxh6 Qf8 20. Qe3 Rad8 21. Nd2 e5 22. Qb3+ Qf7 23. Ne4 Re6 24. dxe5 Rd4 25. Nxf6+ Kg7 26. h5 Qe7 27. hxg6 hxg6 28. Qc3 Rxe5 29. Nd7 Ree4 30. Re5 Qh4 31. Rxe4 Qxe4 32. Nc5 Qh4 33. Nd7 Qe4 34. Nc5 Qe1+ 35. Rxe1 Kg8 36. Qxd4 Ba8 37. Re7 a6 38. Qg7# 1-0

[Event "ChessHouse GM December 2020"]
[Site "Aarhus"]
[Date "2020.12.01"]
[Round "4.2"]
[White "Bjerre, Jonas Buhl"]
[Black "Ramsdal, Jens Albert"]
[Result "1-0"]
[ECO "E06"]
[WhiteElo "2551"]
[BlackElo "2292"]
[Annotator "RC"]
[PlyCount "121"]
[EventDate "2020.11.29"]
[EventType "tourn"]
[EventCountry "DEN"]
[SourceTitle "playchess.com"]
[Source "ChessBase"]
[SourceQuality "1"]
[TimeControl "40/5400+30:1800+30"]

1. d4 Nf6 {[%emt 0:00:25]} 2. c4 {[%emt 0:00:00]} e6 {[%emt 0:00:18]} 3. Nf3 {[%emt 0:00:36]} d5 {[%emt 0:00:34]} 4. g3 {[%emt 0:00:55]} Be7 {[%emt 0:00:26]} 5. Bg2 {[%emt 0:00:21]} O-O {[%emt 0:00:09]} 6. O-O {[%emt 0:00:56]} dxc4 {[%emt 0:00:25]} 7. Qc2 {[%emt 0:02:16]} a6 {[%emt 0:01:12]} 8. a4 {[%emt 0:00:39]} Bd7 {[%emt 0:02:38]} 9. Qxc4 {[%emt 0:01:15]} Bc6 {[%emt 0:00:51]} 10. Bf4 {[%emt 0:01:03]} Nbd7 {[%emt 0:03:56]} 11. Nc3 {[%emt 0:02:27]} Bd6 {[%emt 0:13:20]} 12. Bd2 {[%emt 0:09:46]} Ne4 {[%emt 0:04:17]} 13. Nxe4 {[%emt 0:02:45]} Bxe4 {[%emt 0:00:15]} 14. Rfd1 {[%emt 0:02:41]} Nb6 {[%emt 0:06:25]} 15. Qb3 {[%emt 0:02:27]} a5 {[%emt 0:05:42]} 16. Ne1 {[%emt 0:04:39]} Bd5 {[%emt 0:08:23]} 17. Qc2 {[%emt 0:02:11]} Bxg2 {[%emt 0:02:20]} 18. Kxg2 {[%emt 0:00:30]} Qe7 {[%emt 0:07:23]} 19. Nd3 {[%emt 0:06:53]} Rfd8 {[%emt 0:01:23]} 20. e4 {[%emt 0:02:54]} c6 {[%emt 0:03:07]} 21. Qb3 {[%emt 0:05:29]} Nc8 {[%emt 0:01:11]} 22. Rac1 {[%emt 0:05:08]} Bb8 {[%emt 0:01:21]} 23. Be3 {[%emt 0:10:40]} Ba7 {[%emt 0:04:53]} 24. Nc5 {[%emt 0:01:24]} Nd6 {[%emt 0:03:54]} 25. f3 {[%emt 0:03:27]} Ne8 {[%emt 0:11:40]} 26. Qc3 {[%emt 0:05:25]} h6 {[%emt 0:01:21]} 27. Bf4 {[%emt 0:01:58]} Nf6 {[%emt 0:01:57]} 28. Be5 {[%emt 0:03:01]} Ne8 {[%emt 0:01:43]} 29. b4 {[%emt 0:04:23]} axb4 {[%emt 0:01:06]} 30. Qxb4 {[%emt 0:00:13]} f6 {[%emt 0:07:46]} 31. Bf4 {[%emt 0:00:37]} Bxc5 {[%emt 0:00:40]} 32. dxc5 {[%emt 0:02:28]} e5 {[%emt 0:00:14]} 33. Be3 {[%emt 0:00:16]} Qf7 {[%emt 0:01:00]} 34. a5 {[%emt 0:03:33]} Kh7 {[%emt 0:00:53]} 35. Rb1 {[%emt 0:02:25]} Rxd1 {[%emt 0:02:50]} 36. Rxd1 {[%emt 0:00:05]} Qc7 {[%emt 0:00:18]} 37. Rb1 {[%emt 0:02:20]} Rd8 {[%emt 0:00:27]} 38. Qc4 {[%emt 0:01:38]} Rd7 {[%emt 0:01:09]} 39. a6 {[%emt 0:02:37]} bxa6 {[%emt 0:00:09]} 40. Qxa6 {[%emt 0:00:34]} Qa7 {[%emt 0:01:28]} 41. Rb6 {[%emt 0:34:56]} Qxa6 {[%emt 0:02:38]} 42. Rxa6 {[%emt 0:00:00]} Rc7 {[%emt 0:01:01]} 43. Ra8 {[%emt 0:00:00]} Re7 {[%emt 0:00:10]} 44. Rc8 {[%emt 0:00:00]} Re6 {[%emt 0:00:50]} 45. Kf2 {[%emt 0:00:00]} Kg6 {[%emt 0:08:06]} 46. g4 {[%emt 0:00:00]} Kf7 {[%emt 0:00:36]} 47. Bd2 {[%emt 0:00:00]} Ke7 {[%emt 0:07:43]} 48. Ba5 {[%emt 0:00:00]} Kf7 {[%emt 0:00:02]} 49. Bd8 {[%emt 0:00:00]} Kg6 {[%emt 0:01:33]} 50. Rb8 {[%emt 0:00:00]} h5 {[%emt 0:01:23]} 51. Kg3 {[%emt 0:00:00]} Kh6 {[%emt 0:01:38]} 52. Rb7 {[%emt 0:00:00]} Kg6 {[%emt 0:01:32]} 53. Kh4 {[%emt 0:00:00]} Kh6 {[%emt 0:01:05]} 54. Be7 {[%emt 0:00:00]} g5+ {[%emt 0:05:45]} 55. Kh3 {[%emt 0:00:00]} Kg7 {[%emt 0:00:15]} 56. gxh5 {[%emt 0:00:00]} Kf7 {[%emt 0:00:52]} 57. Bd8+ {[%emt 0:00:00]} Kg8 {[%emt 0:00:34]} 58. Kg4 {[%emt 0:00:09]} Ng7 {[%emt 0:00:07]} 59. h6 {[%emt 0:00:53]} f5+ {[%emt 0:00:51]} 60. Kxg5 {[%emt 0:00:32]} fxe4 {[%emt 0:00:19]} 61. Rxg7+ {[%emt 0:00:52]} 1-0

[Event "ChessHouse GM December 2020"]
[Site "Aarhus"]
[Date "2020.12.02"]
[Round "5.2"]
[White "Georgescu, Lena"]
[Black "Bjerre, Jonas Buhl"]
[Result "1/2-1/2"]
[ECO "B92"]
[WhiteElo "2278"]
[BlackElo "2551"]
[Annotator "ChessBase"]
[PlyCount "64"]
[EventDate "2020.11.29"]
[EventType "tourn"]
[EventCountry "DEN"]
[SourceTitle "playchess.com"]
[Source "ChessBase"]
[SourceQuality "1"]
[TimeControl "40/5400+30:1800+30"]

1. e4 {[%emt 0:00:00]} c5 {[%emt 0:00:00]} 2. Nf3 {[%emt 0:00:00]} d6 {[%emt 0:00:00]} 3. d4 {[%emt 0:00:00]} cxd4 {[%emt 0:00:00]} 4. Nxd4 {[%emt 0:00:00]} Nf6 {[%emt 0:00:00]} 5. Nc3 {[%emt 0:00:00]} a6 {[%emt 0:00:13]} 6. Be2 {[%emt 0:00:05]} e5 {[%emt 0:01:09]} 7. Nf3 {[%emt 0:00:12]} Be7 {[%emt 0:01:31]} 8. Bg5 {[%emt 0:00:16]} Nbd7 {[%emt 0:03:10]} 9. a4 {[%emt 0:00:17]} h6 {[%emt 0:02:59]} 10. Be3 {[%emt 0:00:08]} b6 {[%emt 0:04:32]} 11. Bc4 {[%emt 0:04:54]} Bb7 {[%emt 0:03:35]} 12. Nd2 {[%emt 0:01:00]} O-O {[%emt 0:03:47]} 13. O-O {[%emt 0:01:28]} Qc7 {[%emt 0:04:40]} 14. Qe2 {[%emt 0:01:02]} Nc5 {[%emt 0:02:57]} 15. Bxc5 {[%emt 0:02:04]} Qxc5 {[%emt 0:03:55]} 16. Rad1 {[%emt 0:16:13]} Rfc8 {[%emt 0:06:43]} 17. Bb3 {[%emt 0:04:36]} Bc6 {[%emt 0:17:29]} 18. Qc4 {[%emt 0:04:24]} Be8 {[%emt 0:06:46]} 19. Qxc5 {[%emt 0:03:38]} Rxc5 {[%emt 0:03:22]} 20. Nc4 {[%emt 0:05:31]} Rc6 {[%emt 0:08:43]} 21. Ne3 {[%emt 0:11:32]} Ra7 {[%emt 0:02:14]} 22. Ncd5 {[%emt 0:03:35]} Nxd5 {[%emt 0:02:28]} 23. Nxd5 {[%emt 0:01:00]} Kf8 {[%emt 0:01:09]} 24. g3 {[%emt 0:02:22]} Bd7 {[%emt 0:02:02]} 25. Kg2 {[%emt 0:02:48]} Be6 {[%emt 0:01:28]} 26. Rd3 {[%emt 0:04:08]} Ra8 {[%emt 0:03:32]} 27. Rfd1 {[%emt 0:01:47]} Ra7 {[%emt 0:00:43]} 28. h4 {[%emt 0:02:05]} h5 {[%emt 0:01:13]} 29. Nb4 {[%emt 0:11:53]} Rc8 {[%emt 0:01:40]} 30. Nd5 {[%emt 0:00:05]} Rc6 {[%emt 0:01:13]} 31. Nb4 {[%emt 0:00:09]} Rc8 {[%emt 0:00:42]} 32. Nd5 {[%emt 0:00:06]} Rc6 1/2-1/2

[Event "ChessHouse GM December 2020"]
[Site "Aarhus"]
[Date "2020.12.02"]
[Round "5.4"]
[White "Nilssen, Ellen Fredericia"]
[Black "Danielsen, Henrik"]
[Result "1/2-1/2"]
[ECO "E68"]
[WhiteElo "2174"]
[BlackElo "2517"]
[Annotator "ChessBase"]
[PlyCount "104"]
[EventDate "2020.11.29"]
[EventType "tourn"]
[EventCountry "DEN"]
[SourceTitle "playchess.com"]
[Source "ChessBase"]
[SourceQuality "1"]
[TimeControl "40/5400+30:1800+30"]

1. d4 {[%emt 0:00:00]} d6 {[%emt 0:00:00]} 2. Nf3 {[%emt 0:00:00]} Nf6 {[%emt 0:01:33]} 3. g3 {[%emt 0:00:00]} g6 {[%emt 0:01:13]} 4. Bg2 {[%emt 0:00:05]} Bg7 {[%emt 0:00:11]} 5. O-O {[%emt 0:00:08]} O-O {[%emt 0:00:10]} 6. c4 {[%emt 0:00:06]} Nbd7 {[%emt 0:06:35]} 7. Nc3 {[%emt 0:00:08]} e5 {[%emt 0:00:10]} 8. e4 {[%emt 0:00:19]} c6 {[%emt 0:00:20]} 9. Be3 {[%emt 0:01:01]} Re8 {[%emt 0:05:02]} 10. h3 {[%emt 0:00:06]} Qe7 {[%emt 0:03:38]} 11. d5 {[%emt 0:06:01]} c5 {[%emt 0:01:54]} 12. Qc2 {[%emt 0:08:22]} Rf8 {[%emt 0:00:31]} 13. Rae1 {[%emt 0:07:12]} a6 {[%emt 0:03:29]} 14. a4 {[%emt 0:07:04]} Nh5 {[%emt 0:03:40]} 15. Bg5 {[%emt 0:07:26]} Qe8 {[%emt 0:02:40]} 16. Nh2 {[%emt 0:05:11]} Kh8 {[%emt 0:04:06]} 17. Ne2 {[%emt 0:13:10]} Rb8 {[%emt 0:02:43]} 18. g4 {[%emt 0:01:14]} Nhf6 {[%emt 0:00:19]} 19. Nc3 {[%emt 0:05:45]} b6 {[%emt 0:05:48]} 20. Re2 {[%emt 0:01:28]} Ng8 {[%emt 0:02:57]} 21. Qc1 {[%emt 0:02:05]} Rb7 {[%emt 0:02:09]} 22. Kh1 {[%emt 0:02:03]} Nb8 {[%emt 0:07:14]} 23. f4 {[%emt 0:06:10]} f6 {[%emt 0:02:23]} 24. Bh4 {[%emt 0:00:08]} exf4 {[%emt 0:00:34]} 25. g5 {[%emt 0:01:23]} Nd7 {[%emt 0:05:30]} 26. gxf6 {[%emt 0:04:10]} Ngxf6 {[%emt 0:00:27]} 27. e5 {[%emt 0:03:23]} Nxe5 {[%emt 0:00:54]} 28. Nf3 {[%emt 0:01:48]} Nh5 {[%emt 0:01:37]} 29. Ne4 {[%emt 0:01:05]} Qd7 {[%emt 0:07:33]} 30. Nfg5 {[%emt 0:00:41]} f3 {[%emt 0:00:53]} 31. Bxf3 {[%emt 0:04:46]} Nxf3 {[%emt 0:01:44]} 32. Ref2 {[%emt 0:00:19]} Qe7 {[%emt 0:15:38]} 33. Rxf3 {[%emt 0:00:22]} Rxf3 {[%emt 0:00:18]} 34. Rxf3 {[%emt 0:00:10]} Bf5 {[%emt 0:00:10]} 35. Qe1 {[%emt 0:01:34]} Be5 {[%emt 0:07:08]} 36. Ne6 {[%emt 0:01:27]} Qe8 {[%emt 0:00:15]} 37. Nd8 {[%emt 0:04:59]} Bd4 {[%emt 0:01:50]} 38. Nxd6 {[%emt 0:01:32]} Qxe1+ {[%emt 0:03:10]} 39. Bxe1 {[%emt 0:05:12]} Rd7 {[%emt 0:01:10]} 40. Nxf5 {[%emt 0:01:23]} gxf5 {[%emt 0:00:15]} 41. Ne6 {[%emt 0:01:40]} Bxb2 {[%emt 0:01:09]} 42. Rxf5 {[%emt 0:02:26]} Nf6 {[%emt 0:00:07]} 43. Bh4 {[%emt 0:01:16]} Ng8 {[%emt 0:00:32]} 44. Rf2 {[%emt 0:04:14]} Be5 {[%emt 0:02:14]} 45. Re2 {[%emt 0:01:14]} Bc3 {[%emt 0:00:35]} 46. Re3 {[%emt 0:00:54]} Bf6 {[%emt 0:01:55]} 47. Bxf6+ {[%emt 0:01:20]} Nxf6 {[%emt 0:00:01]} 48. Rf3 {[%emt 0:00:10]} Rf7 {[%emt 0:00:47]} 49. Nd8 {[%emt 0:03:05]} Rf8 {[%emt 0:00:13]} 50. Ne6 {[%emt 0:00:04]} Rf7 {[%emt 0:00:02]} 51. Nd8 {[%emt 0:00:16]} Rf8 {[%emt 0:00:01]} 52. Ne6 {[%emt 0:00:09]} Rf7 1/2-1/2

[Event "ChessHouse GM December 2020"]
[Site "Aarhus"]
[Date "2020.12.02"]
[Round "5.5"]
[White "Olsen, Filip Boe"]
[Black "Heimisson, Hilmir Freyr"]
[Result "1-0"]
[ECO "A40"]
[WhiteElo "2354"]
[BlackElo "2318"]
[Annotator "NA"]
[PlyCount "55"]
[EventDate "2020.11.29"]
[EventType "tourn"]
[EventCountry "DEN"]
[SourceTitle "playchess.com"]
[Source "ChessBase"]
[SourceQuality "1"]
[TimeControl "40/5400+30:1800+30"]

1. d4 {[%emt 0:00:00]} e6 {[%emt 0:00:51]} 2. c4 {[%emt 0:00:00]} b6 {[%emt 0:00:05]} 3. e4 {[%emt 0:00:05]} Bb4+ {[%emt 0:00:09]} 4. Bd2 {[%emt 0:00:19]} Bxd2+ {[%emt 0:00:05]} 5. Qxd2 {[%emt 0:00:16]} d5 {[%emt 0:00:05]} 6. Bd3 {[%emt 0:00:35]} Bb7 {[%emt 0:06:40]} 7. cxd5 {[%emt 0:04:26]} exd5 {[%emt 0:00:10]} 8. e5 {[%emt 0:02:22]} c5 {[%emt 0:03:11]} 9. Nf3 {[%emt 0:03:34]} Ne7 {[%emt 0:03:05]} 10. O-O {[%emt 0:07:51]} Nbc6 {[%emt 0:15:43]} 11. Nc3 $14 {[%emt 0:09:45]} O-O {[%emt 0:08:28]} 12. Ne2 {[%emt 0:09:57]} c4 {[%emt 0:08:16]} 13. Bc2 {[%emt 0:01:28]} f6 {[%emt 0:00:06]} 14. Nf4 {[%emt 0:05:12]} Bc8 {[%emt 0:08:55]} 15. Rfe1 {[%emt 0:04:07]} Bg4 {[%emt 0:08:28]} 16. exf6 {[%emt 0:06:16]} Rxf6 {[%emt 0:00:06]} 17. Ne5 {[%emt 0:00:26]} Bf5 {[%emt 0:00:43]} 18. Ba4 {[%emt 0:15:02]} Na5 {[%emt 0:15:06]} 19. g4 {[%emt 0:07:38]} Bg6 {[%emt 0:06:00]} 20. Nexg6 {[%emt 0:05:01]} hxg6 {[%emt 0:03:44]} 21. Rxe7 {[%emt 0:00:53]} Qxe7 {[%emt 0:00:46]} 22. Nxd5 {[%emt 0:00:02]} Qd6 {[%emt 0:01:33]} 23. Nxf6+ {[%emt 0:00:09]} Qxf6 {[%emt 0:00:03]} 24. Qe3 {[%emt 0:05:41]} Rd8 {[%emt 0:00:59]} 25. Rd1 {[%emt 0:00:01]} Nb7 {[%emt 0:03:14]} 26. Bd7 {[%emt 0:01:56]} Kh7 {[%emt 0:01:19]} 27. g5 {[%emt 0:01:07]} Qd6 {[%emt 0:01:17]} 28. Be6 {[%emt 0:00:11]} 1-0

[Event "ChessHouse GM December 2020"]
[Site "Aarhus"]
[Date "2020.12.03"]
[Round "6.1"]
[White "Thybo, Jesper Sondergaard"]
[Black "Olsen, Filip Boe"]
[Result "1/2-1/2"]
[ECO "A06"]
[WhiteElo "2565"]
[BlackElo "2354"]
[Annotator "ChessBase"]
[PlyCount "157"]
[EventDate "2020.11.29"]
[EventType "tourn"]
[EventCountry "DEN"]
[SourceTitle "playchess.com"]
[Source "ChessBase"]
[SourceQuality "1"]
[TimeControl "40/5400+30:1800+30"]

1. Nf3 {[%emt 0:00:00]} d5 {[%emt 0:00:00]} 2. g3 {[%emt 0:00:00]} Nf6 {[%emt 0:00:00]} 3. Bg2 {[%emt 0:00:00]} c6 {[%emt 0:00:10]} 4. O-O {[%emt 0:01:17]} Bf5 {[%emt 0:00:55]} 5. c4 {[%emt 0:01:23]} e6 {[%emt 0:00:16]} 6. cxd5 {[%emt 0:01:07]} cxd5 {[%emt 0:00:58]} 7. Qb3 {[%emt 0:02:22]} Qb6 {[%emt 0:00:52]} 8. Qxb6 {[%emt 0:01:17]} axb6 {[%emt 0:00:31]} 9. Nc3 {[%emt 0:00:12]} Nc6 {[%emt 0:00:33]} 10. d3 {[%emt 0:01:38]} Be7 {[%emt 0:02:36]} 11. Nb5 {[%emt 0:02:25]} O-O {[%emt 0:02:15]} 12. Be3 {[%emt 0:06:56]} Nd7 {[%emt 0:05:50]} 13. Nfd4 {[%emt 0:02:18]} Bg6 {[%emt 0:02:22]} 14. f4 {[%emt 0:00:12]} Bc5 {[%emt 0:08:11]} 15. a3 {[%emt 0:08:10]} Nxd4 {[%emt 0:32:32]} 16. Nxd4 {[%emt 0:10:30]} Bh5 {[%emt 0:14:23]} 17. Rae1 Rfc8 18. h3 {[%emt 0:06:31]} Ra4 {[%emt 0:05:16]} 19. Nc2 {[%emt 0:15:03]} Be7 {[%emt 0:00:18]} 20. Na1 {[%emt 0:01:27]} f5 {[%emt 0:00:28]} 21. Rc1 {[%emt 0:12:44]} Rc6 {[%emt 0:01:45]} 22. Kf2 {[%emt 0:00:54]} Bf6 {[%emt 0:00:38]} 23. Rc2 {[%emt 0:04:55]} Ra8 {[%emt 0:08:12]} 24. Rb1 {[%emt 0:03:41]} Rac8 {[%emt 0:01:33]} 25. Rxc6 {[%emt 0:00:06]} bxc6 {[%emt 0:00:14]} 26. b4 {[%emt 0:00:21]} Kf8 {[%emt 0:03:14]} 27. Nc2 {[%emt 0:01:13]} c5 {[%emt 0:01:49]} 28. bxc5 {[%emt 0:01:08]} bxc5 {[%emt 0:01:35]} 29. Rb7 {[%emt 0:00:03]} Ke8 {[%emt 0:01:36]} 30. Ke1 {[%emt 0:07:54]} c4 {[%emt 0:01:28]} 31. Nd4 {[%emt 0:05:09]} cxd3 {[%emt 0:01:07]} 32. exd3 {[%emt 0:00:06]} Nc5 {[%emt 0:00:47]} 33. Rb6 {[%emt 0:00:05]} Nxd3+ {[%emt 0:01:58]} 34. Kd2 {[%emt 0:00:14]} Nc5 {[%emt 0:00:14]} 35. Nb5 {[%emt 0:02:53]} Kd7 {[%emt 0:01:23]} 36. Rd6+ {[%emt 0:01:42]} Ke7 {[%emt 0:00:09]} 37. Rb6 {[%emt 0:00:04]} Kd7 {[%emt 0:00:23]} 38. Rd6+ {[%emt 0:00:04]} Ke7 {[%emt 0:00:07]} 39. Rb6 {[%emt 0:00:10]} Nb3+ {[%emt 0:00:51]} 40. Kd3 {[%emt 0:00:20]} Be8 {[%emt 0:01:40]} 41. Rb7+ {[%emt 0:20:57]} Bd7 {[%emt 0:02:08]} 42. Nc7 {[%emt 0:00:16]} Na5 {[%emt 0:06:25]} 43. Bc5+ {[%emt 0:01:28]} Kf7 {[%emt 0:02:04]} 44. Ra7 {[%emt 0:00:17]} Nc6 {[%emt 0:01:58]} 45. Rb7 {[%emt 0:00:09]} Nd8 {[%emt 0:04:55]} 46. Ra7 {[%emt 0:00:24]} Kg6 {[%emt 0:00:43]} 47. Bd6 {[%emt 0:03:23]} Nc6 {[%emt 0:03:01]} 48. Ra8 {[%emt 0:03:08]} Rxa8 {[%emt 0:00:42]} 49. Nxa8 {[%emt 0:00:01]} Na5 {[%emt 0:01:27]} 50. Nb6 {[%emt 0:00:33]} Bb5+ {[%emt 0:00:07]} 51. Kc2 {[%emt 0:03:33]} Bd4 {[%emt 0:03:33]} 52. Bc7 {[%emt 0:00:04]} Bf2 {[%emt 0:01:05]} 53. g4 {[%emt 0:01:41]} d4 {[%emt 0:01:47]} 54. a4 {[%emt 0:00:31]} Be2 {[%emt 0:00:32]} 55. Nd7 {[%emt 0:01:53]} d3+ {[%emt 0:01:05]} 56. Kc3 {[%emt 0:00:44]} Be1+ {[%emt 0:00:32]} 57. Kd4 {[%emt 0:00:04]} Nb3+ {[%emt 0:01:31]} 58. Ke3 {[%emt 0:00:15]} Bd2+ {[%emt 0:00:58]} 59. Kf2 {[%emt 0:00:01]} h5 {[%emt 0:00:30]} 60. Ne5+ {[%emt 0:02:34]} Kh7 {[%emt 0:00:01]} 61. gxf5 {[%emt 0:00:27]} exf5 {[%emt 0:01:07]} 62. Bf3 {[%emt 0:00:42]} Bxf4 {[%emt 0:01:46]} 63. Bxe2 {[%emt 0:00:13]} dxe2 {[%emt 0:00:06]} 64. Kxe2 {[%emt 0:00:01]} g5 {[%emt 0:00:28]} 65. Kf3 {[%emt 0:01:10]} Nd4+ {[%emt 0:01:18]} 66. Kg2 {[%emt 0:00:03]} Nb3 {[%emt 0:01:14]} 67. Kf3 {[%emt 0:00:43]} h4 {[%emt 0:01:19]} 68. Bb8 {[%emt 0:01:09]} Nd4+ {[%emt 0:00:36]} 69. Kg2 {[%emt 0:00:06]} Bd2 {[%emt 0:01:07]} 70. Nc4 {[%emt 0:00:18]} Bb4 {[%emt 0:00:10]} 71. a5 {[%emt 0:00:11]} Nc6 {[%emt 0:00:45]} 72. a6 {[%emt 0:00:06]} Bc5 {[%emt 0:00:08]} 73. Bd6 {[%emt 0:01:44]} Ba7 {[%emt 0:00:18]} 74. Ne5 {[%emt 0:00:21]} Nxe5 {[%emt 0:00:12]} 75. Bxe5 {[%emt 0:00:05]} Kg6 {[%emt 0:00:23]} 76. Bh2 {[%emt 0:00:04]} g4 {[%emt 0:00:07]} 77. Bg1 {[%emt 0:00:12]} Bb8 {[%emt 0:00:06]} 78. a7 {[%emt 0:00:25]} Bxa7 {[%emt 0:00:07]} 79. Bxa7 {[%emt 0:00:03]} 1/2-1/2

[Event "ChessHouse GM December 2020"]
[Site "Aarhus"]
[Date "2020.12.03"]
[Round "6.2"]
[White "Bjerre, Jonas Buhl"]
[Black "Haubro, Martin"]
[Result "1-0"]
[ECO "E10"]
[WhiteElo "2551"]
[BlackElo "2434"]
[Annotator "ChessBase"]
[PlyCount "81"]
[EventDate "2020.11.29"]
[EventType "tourn"]
[EventCountry "DEN"]
[SourceTitle "playchess.com"]
[Source "ChessBase"]
[SourceQuality "1"]
[TimeControl "40/5400+30:1800+30"]

1. d4 {[%emt 0:00:00]} Nf6 {[%emt 0:00:00]} 2. c4 {[%emt 0:00:00]} e6 {[%emt 0:00:00]} 3. Nf3 {[%emt 0:00:00]} d5 {[%emt 0:00:00]} 4. g3 {[%emt 0:00:00]} Bb4+ {[%emt 0:00:00]} 5. Bd2 {[%emt 0:00:00]} Be7 {[%emt 0:00:00]} 6. Bg2 {[%emt 0:00:07]} O-O {[%emt 0:00:00]} 7. O-O {[%emt 0:00:29]} Nbd7 {[%emt 0:00:06]} 8. Bc3 {[%emt 0:00:55]} c6 {[%emt 0:11:08]} 9. Nbd2 {[%emt 0:00:47]} b6 {[%emt 0:03:12]} 10. b4 {[%emt 0:00:57]} Bb7 {[%emt 0:20:05]} 11. Qb3 {[%emt 0:00:55]} b5 {[%emt 0:04:23]} 12. c5 {[%emt 0:03:13]} Qb8 {[%emt 0:18:55]} 13. Ne5 {[%emt 0:08:56]} Nxe5 {[%emt 0:09:17]} 14. dxe5 {[%emt 0:00:28]} Nd7 {[%emt 0:00:03]} 15. Qb2 {[%emt 0:06:00]} a5 {[%emt 0:00:36]} 16. a3 {[%emt 0:01:47]} Qc7 {[%emt 0:10:36]} 17. Nb3 {[%emt 0:13:09]} a4 {[%emt 0:01:06]} 18. Nd4 {[%emt 0:03:57]} Rfe8 {[%emt 0:06:13]} 19. f4 {[%emt 0:02:53]} Bf8 {[%emt 0:00:03]} 20. Kh1 {[%emt 0:06:55]} g6 {[%emt 0:00:09]} 21. e4 {[%emt 0:04:25]} Bg7 {[%emt 0:01:20]} 22. Rae1 {[%emt 0:05:26]} Nf8 {[%emt 0:00:05]} 23. Bh3 {[%emt 0:06:13]} Rad8 {[%emt 0:01:27]} 24. exd5 {[%emt 0:03:58]} exd5 {[%emt 0:00:06]} 25. Qf2 {[%emt 0:06:22]} Ne6 {[%emt 0:02:35]} 26. Nxe6 {[%emt 0:04:42]} fxe6 {[%emt 0:00:05]} 27. Bd4 {[%emt 0:00:50]} Bc8 {[%emt 0:00:05]} 28. g4 {[%emt 0:00:49]} Rf8 {[%emt 0:00:16]} 29. Qg1 {[%emt 0:02:20]} Qe7 {[%emt 0:02:01]} 30. Re3 {[%emt 0:01:30]} Rf7 {[%emt 0:01:02]} 31. f5 {[%emt 0:02:55]} Bh6 {[%emt 0:08:59]} 32. f6 {[%emt 0:05:05]} Qb7 {[%emt 0:00:04]} 33. g5 {[%emt 0:00:27]} Bf8 {[%emt 0:00:05]} 34. Bg4 {[%emt 0:00:13]} Kh8 {[%emt 0:01:34]} 35. h4 {[%emt 0:02:00]} h5 {[%emt 0:01:08]} 36. Bxh5 {[%emt 0:01:57]} Rh7 {[%emt 0:00:04]} 37. Bxg6 {[%emt 0:01:11]} Rxh4+ {[%emt 0:00:05]} 38. Kg2 {[%emt 0:00:19]} Bh6 {[%emt 0:00:20]} 39. Rg3 {[%emt 0:02:15]} Bxg5 {[%emt 0:00:30]} 40. Rxg5 {[%emt 0:00:47]} Rg8 {[%emt 0:00:05]} 41. f7 {[%emt 0:31:04]} 1-0